[Event "Titled Tuesday Blitz March 08 Early 2022"]
[White "Derraugh, Geordie"]
[Black "Prohorov, Olexandr"]
[WhiteFideId "2603950"]
[BlackFideId "14105578"]
[WhiteElo "2116"]
[BlackElo "1993"]
[Result "1-0"]
[Round "06"]
[TimeControl "180+1"]
[Date "2022.03.09"]
[WhiteClock "0:00:07"]
[BlackClock "0:00:01"]

1. e4 {[%clk 0:03:00]}  c5 {[%clk 0:02:59]} 2. c3 {[%clk 0:02:59]}  Qa5 {[%clk 0:02:54]} 3. Nf3 {[%clk 0:02:58]}  Nc6 {[%clk 0:02:51]} 4. Bc4 {[%clk 0:02:56]}  e6 {[%clk 0:02:51]} 5. O-O {[%clk 0:02:55]}  Nf6 {[%clk 0:02:45]} 6. e5 {[%clk 0:02:55]}  Nd5 {[%clk 0:02:44]} 7. Na3 {[%clk 0:02:43]}  Be7 {[%clk 0:02:43]} 8. Re1 {[%clk 0:02:37]}  a6 {[%clk 0:02:40]} 9. Nc2 {[%clk 0:02:34]}  Qc7 {[%clk 0:02:28]} 10. Bxd5 {[%clk 0:02:31]}  exd5 {[%clk 0:02:25]} 11. d4 {[%clk 0:02:30]}  cxd4 {[%clk 0:02:14]} 12. Ncxd4 {[%clk 0:02:28]}  O-O {[%clk 0:02:09]} 13. Nf5 {[%clk 0:02:25]}  d6 {[%clk 0:01:55]} 14. exd6 {[%clk 0:02:19]}  Bxd6 {[%clk 0:01:54]} 15. Qxd5 {[%clk 0:02:17]}  Bf4 {[%clk 0:01:50]} 16. Ng3 {[%clk 0:01:57]}  Be6 {[%clk 0:01:48]} 17. Qe4 {[%clk 0:01:50]}  Bxc1 {[%clk 0:01:46]} 18. Raxc1 {[%clk 0:01:44]}  h6 {[%clk 0:01:46]} 19. c4 {[%clk 0:01:41]}  Rac8 {[%clk 0:01:28]} 20. Nh4 {[%clk 0:01:39]}  Qb6 {[%clk 0:01:21]} 21. b3 {[%clk 0:01:32]}  Qd4 {[%clk 0:01:14]} 22. Nhf5 {[%clk 0:01:22]}  Qxe4 {[%clk 0:01:11]} 23. Rxe4 {[%clk 0:01:23]}  Rfd8 {[%clk 0:01:02]} 24. Rce1 {[%clk 0:01:11]}  Rd2 {[%clk 0:00:59]} 25. R4e2 {[%clk 0:01:11]}  Rcd8 {[%clk 0:00:58]} 26. f3 {[%clk 0:01:02]}  Kf8 {[%clk 0:00:51]} 27. Kf2 {[%clk 0:01:00]}  Nb4 {[%clk 0:00:46]} 28. a3 {[%clk 0:00:15]}  Nd3+ {[%clk 0:00:43]} 29. Ke3 {[%clk 0:00:15]}  Nxe1 {[%clk 0:00:40]} 30. Rxd2 {[%clk 0:00:16]}  Rxd2 {[%clk 0:00:40]} 31. Kxd2 {[%clk 0:00:16]}  Nxg2 {[%clk 0:00:41]} 32. Ke2 {[%clk 0:00:12]}  f6 {[%clk 0:00:20]} 33. Nd6 {[%clk 0:00:11]}  b6 {[%clk 0:00:18]} 34. Nde4 {[%clk 0:00:05]}  Ke7 {[%clk 0:00:18]} 35. Kd3 {[%clk 0:00:02]}  Nf4+ {[%clk 0:00:18]} 36. Kd4 {[%clk 0:00:02]}  h5 {[%clk 0:00:16]} 37. b4 {[%clk 0:00:02]}  h4 {[%clk 0:00:16]} 38. Nf1 {[%clk 0:00:02]}  Ng6 {[%clk 0:00:12]} 39. c5 {[%clk 0:00:02]}  bxc5+ {[%clk 0:00:12]} 40. Nxc5 {[%clk 0:00:03]}  Bc8 {[%clk 0:00:11]} 41. Ne3 {[%clk 0:00:02]}  Ne5 {[%clk 0:00:11]} 42. f4 {[%clk 0:00:02]}  Nc6+ {[%clk 0:00:11]} 43. Kd5 {[%clk 0:00:01]}  Nb8 {[%clk 0:00:09]} 44. Nc4 {[%clk 0:00:01]}  g5 {[%clk 0:00:06]} 45. fxg5 {[%clk 0:00:01]}  fxg5 {[%clk 0:00:07]} 46. Nd6 {[%clk 0:00:01]}  Bh3 {[%clk 0:00:06]} 47. Nde4 {[%clk 0:00:02]}  Bg2 {[%clk 0:00:06]} 48. Ke5 {[%clk 0:00:01]}  g4 {[%clk 0:00:06]} 49. Ng5 {[%clk 0:00:02]}  g3 {[%clk 0:00:06]} 50. hxg3 {[%clk 0:00:03]}  h3 {[%clk 0:00:07]} 51. Nf3 {[%clk 0:00:03]}  Bxf3 {[%clk 0:00:06]} 52. Nd3 {[%clk 0:00:03]}  h2 {[%clk 0:00:06]} 53. Nf2 {[%clk 0:00:04]}  Nc6+ {[%clk 0:00:05]} 54. Kf4 {[%clk 0:00:04]}  Bg2 {[%clk 0:00:06]} 55. g4 {[%clk 0:00:04]}  Kf6 {[%clk 0:00:06]} 56. Kg3 {[%clk 0:00:04]}  Bd5 {[%clk 0:00:05]} 57. Kxh2 {[%clk 0:00:05]}  Kg5 {[%clk 0:00:05]} 58. Kg3 {[%clk 0:00:05]}  Ne5 {[%clk 0:00:06]} 59. Nh3+ {[%clk 0:00:06]}  Kf6 {[%clk 0:00:05]} 60. Kf4 {[%clk 0:00:07]}  Nd3+ {[%clk 0:00:05]} 61. Ke3 {[%clk 0:00:07]}  Nb2 {[%clk 0:00:05]} 62. Kd4 {[%clk 0:00:08]}  Be6 {[%clk 0:00:05]} 63. Nf2 {[%clk 0:00:07]}  Nc4 {[%clk 0:00:04]} 64. a4 {[%clk 0:00:08]}  Nb6 {[%clk 0:00:03]} 65. a5 {[%clk 0:00:08]}  Nd5 {[%clk 0:00:03]} 66. Kc5 {[%clk 0:00:08]}  Bd7 {[%clk 0:00:01]} 67. Kxd5 {[%clk 0:00:07]} 1-0


[Site "https://www.chess.com"]

[Event "Titled Tuesday Blitz March 08 Early 2022"]
[White "Devaev, Alexander"]
[Black "Chernov, Alexander A."]
[WhiteFideId "4169395"]
[BlackFideId "4152492"]
[WhiteElo "2185"]
[BlackElo "1956"]
[Result "1-0"]
[Round "06"]
[TimeControl "180+1"]
[Date "2022.03.09"]
[WhiteClock "0:00:20"]
[BlackClock "0:00:02"]

1. Nf3 {[%clk 0:02:49]}  d5 {[%clk 0:02:59]} 2. d4 {[%clk 0:02:49]}  e6 {[%clk 0:02:56]} 3. c4 {[%clk 0:02:49]}  Nf6 {[%clk 0:02:56]} 4. cxd5 {[%clk 0:02:49]}  exd5 {[%clk 0:02:54]} 5. Nc3 {[%clk 0:02:50]}  Be7 {[%clk 0:02:54]} 6. Bg5 {[%clk 0:02:51]}  O-O {[%clk 0:02:53]} 7. Bxf6 {[%clk 0:02:51]}  Bxf6 {[%clk 0:02:52]} 8. e3 {[%clk 0:02:52]}  c6 {[%clk 0:02:52]} 9. Bd3 {[%clk 0:02:53]}  Bg4 {[%clk 0:02:46]} 10. Qc2 {[%clk 0:02:53]}  h6 {[%clk 0:02:42]} 11. h3 {[%clk 0:02:53]}  Be6 {[%clk 0:02:38]} 12. O-O {[%clk 0:02:52]}  Nd7 {[%clk 0:02:36]} 13. b4 {[%clk 0:02:29]}  Rc8 {[%clk 0:02:26]} 14. Rab1 {[%clk 0:02:16]}  Be7 {[%clk 0:02:23]} 15. Na4 {[%clk 0:02:16]}  b5 {[%clk 0:02:15]} 16. Nc5 {[%clk 0:02:13]}  Nxc5 {[%clk 0:02:08]} 17. bxc5 {[%clk 0:02:11]}  a5 {[%clk 0:01:59]} 18. Ne5 {[%clk 0:01:51]}  f6 {[%clk 0:01:31]} 19. Ng6 {[%clk 0:01:49]}  Re8 {[%clk 0:01:31]} 20. Rbe1 {[%clk 0:01:46]}  Bf7 {[%clk 0:01:28]} 21. Qd2 {[%clk 0:01:38]}  Qd7 {[%clk 0:01:23]} 22. Bb1 {[%clk 0:01:33]}  Ra8 {[%clk 0:01:17]} 23. Nh4 {[%clk 0:01:33]}  Kf8 {[%clk 0:01:04]} 24. Qc2 {[%clk 0:01:22]}  Bd8 {[%clk 0:00:53]} 25. Qh7 {[%clk 0:01:02]}  Be6 {[%clk 0:00:45]} 26. Bg6 {[%clk 0:00:55]}  Bf7 {[%clk 0:00:36]} 27. Qh8+ {[%clk 0:00:41]}  Bg8 {[%clk 0:00:37]} 28. e4 {[%clk 0:00:35]}  dxe4 {[%clk 0:00:23]} 29. Bxe4 {[%clk 0:00:33]}  Bc7 {[%clk 0:00:17]} 30. Bh7 {[%clk 0:00:26]}  Kf7 {[%clk 0:00:16]} 31. Bg6+ {[%clk 0:00:20]}  Kf8 {[%clk 0:00:17]} 32. Bf5 {[%clk 0:00:20]}  Qf7 {[%clk 0:00:15]} 33. Ng6+ {[%clk 0:00:19]}  Qxg6 {[%clk 0:00:16]} 34. Bxg6 {[%clk 0:00:19]}  Rxe1 {[%clk 0:00:04]} 35. Rxe1 {[%clk 0:00:20]}  Bf4 {[%clk 0:00:03]} 36. Bh7 {[%clk 0:00:18]}  Kf7 {[%clk 0:00:02]} 37. Bxg8+ {[%clk 0:00:18]}  Rxg8 {[%clk 0:00:02]} 38. Re7+ {[%clk 0:00:19]}  Kxe7 {[%clk 0:00:02]} 39. Qxg8 {[%clk 0:00:20]} 1-0


[Site "https://www.chess.com"]

[Event "Titled Tuesday Blitz March 08 Early 2022"]
[White "Dilmukhametov, Artur"]
[Black "Winkels, Marcel"]
[WhiteFideId "24179922"]
[BlackFideId "1003887"]
[WhiteElo "2237"]
[BlackElo "1900"]
[Result "0-1"]
[Round "06"]
[TimeControl "180+1"]
[Date "2022.03.09"]
[WhiteClock "0:00:02"]
[BlackClock "0:01:17"]

1. d4 {[%clk 0:02:56]}  Nf6 {[%clk 0:02:59]} 2. c4 {[%clk 0:02:53]}  c5 {[%clk 0:02:58]} 3. d5 {[%clk 0:02:52]}  b5 {[%clk 0:02:57]} 4. b3 {[%clk 0:02:41]}  bxc4 {[%clk 0:02:52]} 5. bxc4 {[%clk 0:02:39]}  g6 {[%clk 0:02:51]} 6. Bb2 {[%clk 0:02:37]}  Bg7 {[%clk 0:02:52]} 7. Nf3 {[%clk 0:02:36]}  d6 {[%clk 0:02:51]} 8. e4 {[%clk 0:02:31]}  Nbd7 {[%clk 0:02:51]} 9. Be2 {[%clk 0:02:27]}  Rb8 {[%clk 0:02:50]} 10. Qc2 {[%clk 0:02:25]}  O-O {[%clk 0:02:45]} 11. Nc3 {[%clk 0:02:20]}  Rxb2 {[%clk 0:02:41]} 12. Qxb2 {[%clk 0:02:17]}  Nxe4 {[%clk 0:02:41]} 13. O-O {[%clk 0:01:30]}  Bxc3 {[%clk 0:02:36]} 14. Qc2 {[%clk 0:01:27]}  Bxa1 {[%clk 0:02:36]} 15. Qxe4 {[%clk 0:01:26]}  Bg7 {[%clk 0:02:33]} 16. h4 {[%clk 0:01:24]}  Nf6 {[%clk 0:02:28]} 17. Qd3 {[%clk 0:01:23]}  Bf5 {[%clk 0:02:25]} 18. Qd2 {[%clk 0:01:22]}  Qb6 {[%clk 0:02:23]} 19. Ng5 {[%clk 0:01:20]}  Rb8 {[%clk 0:02:21]} 20. f3 {[%clk 0:01:14]}  Qb2 {[%clk 0:02:19]} 21. Qe3 {[%clk 0:01:08]}  Qd4 {[%clk 0:02:17]} 22. Qxd4 {[%clk 0:01:06]}  cxd4 {[%clk 0:02:17]} 23. g4 {[%clk 0:01:06]}  d3 {[%clk 0:02:09]} 24. Bd1 {[%clk 0:00:59]}  Bd7 {[%clk 0:02:08]} 25. Kf2 {[%clk 0:00:57]}  Rb2+ {[%clk 0:02:06]} 26. Ke3 {[%clk 0:00:56]}  d2 {[%clk 0:02:00]} 27. Rf2 {[%clk 0:00:53]}  h6 {[%clk 0:01:56]} 28. Nh3 {[%clk 0:00:51]}  Ne8 {[%clk 0:01:50]} 29. Rxd2 {[%clk 0:00:50]}  Rxd2 {[%clk 0:01:49]} 30. Kxd2 {[%clk 0:00:49]}  Nc7 {[%clk 0:01:49]} 31. g5 {[%clk 0:00:47]}  h5 {[%clk 0:01:44]} 32. f4 {[%clk 0:00:46]}  Bxh3 {[%clk 0:01:42]} 33. Ke3 {[%clk 0:00:16]}  Na6 {[%clk 0:01:40]} 34. Bb3 {[%clk 0:00:15]}  Nc5 {[%clk 0:01:39]} 35. Kf2 {[%clk 0:00:11]}  Nxb3 {[%clk 0:01:38]} 36. axb3 {[%clk 0:00:10]}  Bf5 {[%clk 0:01:39]} 37. Ke3 {[%clk 0:00:09]}  Bc3 {[%clk 0:01:36]} 38. Kf3 {[%clk 0:00:07]}  Bc2 {[%clk 0:01:35]} 39. b4 {[%clk 0:00:06]}  Bxb4 {[%clk 0:01:35]} 40. f5 {[%clk 0:00:06]}  a5 {[%clk 0:01:34]} 41. c5 {[%clk 0:00:06]}  Bxc5 {[%clk 0:01:32]} 42. fxg6 {[%clk 0:00:06]}  fxg6 {[%clk 0:01:31]} 43. Ke2 {[%clk 0:00:07]}  Bb4 {[%clk 0:01:29]} 44. Kf1 {[%clk 0:00:05]}  a4 {[%clk 0:01:29]} 45. Kf2 {[%clk 0:00:06]}  a3 {[%clk 0:01:29]} 46. Ke3 {[%clk 0:00:07]}  a2 {[%clk 0:01:30]} 47. Kd4 {[%clk 0:00:07]}  a1=Q+ {[%clk 0:01:30]} 48. Ke3 {[%clk 0:00:07]}  Bc5+ {[%clk 0:01:28]} 49. Kd2 {[%clk 0:00:06]}  Bf5 {[%clk 0:01:23]} 50. Ke2 {[%clk 0:00:05]}  Qd4 {[%clk 0:01:20]} 51. Kf1 {[%clk 0:00:02]}  Qxh4 {[%clk 0:01:17]} 0-1


[Site "https://www.chess.com"]

[Event "Titled Tuesday Blitz March 08 Early 2022"]
[White "Domingo Nunez, Alejandro"]
[Black "Mekhitarian, Krikor Sevag"]
[WhiteFideId "22245561"]
[BlackFideId "2107660"]
[WhiteElo "2215"]
[BlackElo "2598"]
[Result "1-0"]
[Round "06"]
[TimeControl "180+1"]
[Date "2022.03.09"]
[WhiteClock "0:00:09"]
[BlackClock "0:00:04"]

1. c4 {[%clk 0:02:59]}  c5 {[%clk 0:02:59]} 2. Nc3 {[%clk 0:02:57]}  Nc6 {[%clk 0:02:59]} 3. Nf3 {[%clk 0:02:57]}  g6 {[%clk 0:02:58]} 4. e3 {[%clk 0:02:56]}  Nf6 {[%clk 0:02:58]} 5. d4 {[%clk 0:02:56]}  cxd4 {[%clk 0:02:59]} 6. exd4 {[%clk 0:02:57]}  d5 {[%clk 0:03:00]} 7. cxd5 {[%clk 0:02:57]}  Nxd5 {[%clk 0:02:57]} 8. Qb3 {[%clk 0:02:57]}  Nxc3 {[%clk 0:02:57]} 9. Bc4 {[%clk 0:02:57]}  e6 {[%clk 0:02:57]} 10. bxc3 {[%clk 0:02:57]}  Bd7 {[%clk 0:02:57]} 11. Bd3 {[%clk 0:02:45]}  Na5 {[%clk 0:02:56]} 12. Qb2 {[%clk 0:02:45]}  Rc8 {[%clk 0:02:37]} 13. O-O {[%clk 0:02:39]}  Bg7 {[%clk 0:02:36]} 14. Bg5 {[%clk 0:02:38]}  f6 {[%clk 0:02:27]} 15. Bf4 {[%clk 0:02:33]}  O-O {[%clk 0:02:26]} 16. Bd6 {[%clk 0:02:28]}  Re8 {[%clk 0:02:24]} 17. Bb4 {[%clk 0:02:28]}  Nc4 {[%clk 0:02:22]} 18. Qe2 {[%clk 0:02:25]}  Qc7 {[%clk 0:01:48]} 19. a4 {[%clk 0:01:59]}  b6 {[%clk 0:01:43]} 20. a5 {[%clk 0:01:31]}  Nxa5 {[%clk 0:01:40]} 21. Bxa5 {[%clk 0:01:19]}  bxa5 {[%clk 0:01:41]} 22. c4 {[%clk 0:01:19]}  Bc6 {[%clk 0:01:30]} 23. Nd2 {[%clk 0:01:19]}  f5 {[%clk 0:01:28]} 24. Qe3 {[%clk 0:00:55]}  Rcd8 {[%clk 0:01:15]} 25. d5 {[%clk 0:00:52]}  exd5 {[%clk 0:01:12]} 26. Qc5 {[%clk 0:00:51]}  Bxa1 {[%clk 0:01:04]} 27. Rxa1 {[%clk 0:00:51]}  Qb6 {[%clk 0:00:52]} 28. Qa3 {[%clk 0:00:51]}  Qb4 {[%clk 0:00:43]} 29. Qc1 {[%clk 0:00:51]}  dxc4 {[%clk 0:00:42]} 30. Bxc4+ {[%clk 0:00:50]}  Bd5 {[%clk 0:00:41]} 31. Bf1 {[%clk 0:00:41]}  a4 {[%clk 0:00:35]} 32. Rb1 {[%clk 0:00:37]}  Qd6 {[%clk 0:00:32]} 33. Qc3 {[%clk 0:00:29]}  a3 {[%clk 0:00:32]} 34. Ra1 {[%clk 0:00:30]}  a2 {[%clk 0:00:32]} 35. Nc4 {[%clk 0:00:29]}  Qe6 {[%clk 0:00:30]} 36. h4 {[%clk 0:00:24]}  Rc8 {[%clk 0:00:29]} 37. Rxa2 {[%clk 0:00:20]}  Bxc4 {[%clk 0:00:29]} 38. Rxa7 {[%clk 0:00:20]}  Qe5 {[%clk 0:00:18]} 39. Bxc4+ {[%clk 0:00:19]}  Kh8 {[%clk 0:00:18]} 40. Qd3 {[%clk 0:00:16]}  Red8 {[%clk 0:00:12]} 41. Qb3 {[%clk 0:00:14]}  Qd4 {[%clk 0:00:03]} 42. Qb7 {[%clk 0:00:13]}  Qd1+ {[%clk 0:00:01]} 43. Bf1 {[%clk 0:00:13]}  Qd7 {[%clk 0:00:01]} 44. Qxd7 {[%clk 0:00:13]}  Rxd7 {[%clk 0:00:01]} 45. Rxd7 {[%clk 0:00:14]}  Rc1 {[%clk 0:00:02]} 46. g3 {[%clk 0:00:14]}  Rc3 {[%clk 0:00:02]} 47. Kg2 {[%clk 0:00:15]}  f4 {[%clk 0:00:02]} 48. g4 {[%clk 0:00:14]}  Rc1 {[%clk 0:00:02]} 49. Be2 {[%clk 0:00:15]}  Rc3 {[%clk 0:00:01]} 50. Bf3 {[%clk 0:00:15]}  Rc5 {[%clk 0:00:02]} 51. g5 {[%clk 0:00:15]}  h6 {[%clk 0:00:02]} 52. gxh6 {[%clk 0:00:15]}  g5 {[%clk 0:00:03]} 53. h5 {[%clk 0:00:14]}  g4 {[%clk 0:00:04]} 54. Bxg4 {[%clk 0:00:14]}  Rg5 {[%clk 0:00:04]} 55. f3 {[%clk 0:00:15]}  Rg8 {[%clk 0:00:04]} 56. Rc7 {[%clk 0:00:13]}  Rg5 {[%clk 0:00:05]} 57. Kf2 {[%clk 0:00:12]}  Rg8 {[%clk 0:00:04]} 58. Rc8 {[%clk 0:00:11]}  Kh7 {[%clk 0:00:03]} 59. Bf5+ {[%clk 0:00:10]}  Kxh6 {[%clk 0:00:04]} 60. Rxg8 {[%clk 0:00:09]} 1-0


[Site "https://www.chess.com"]

[Event "Titled Tuesday Blitz March 08 Early 2022"]
[White "Dubov, Daniil"]
[Black "Kozak, Antoni"]
[WhiteFideId "24126055"]
[BlackFideId "21832030"]
[WhiteElo "2791"]
[BlackElo "2236"]
[Result "1-0"]
[Round "06"]
[TimeControl "180+1"]
[Date "2022.03.08"]
[WhiteClock "0:00:03"]
[BlackClock "0:00:02"]

1. d4 {[%clk 0:03:00]}  d5 {[%clk 0:02:59]} 2. Nf3 {[%clk 0:03:01]}  Nf6 {[%clk 0:02:58]} 3. c4 {[%clk 0:03:02]}  e6 {[%clk 0:02:58]} 4. g3 {[%clk 0:03:01]}  dxc4 {[%clk 0:02:58]} 5. Bg2 {[%clk 0:03:01]}  Bb4+ {[%clk 0:02:58]} 6. Nbd2 {[%clk 0:03:00]}  b5 {[%clk 0:02:58]} 7. Ne5 {[%clk 0:02:57]}  Nd5 {[%clk 0:02:54]} 8. O-O {[%clk 0:02:57]}  O-O {[%clk 0:02:45]} 9. Qc2 {[%clk 0:02:48]}  Bb7 {[%clk 0:02:29]} 10. b3 {[%clk 0:02:40]}  Bc3 {[%clk 0:02:18]} 11. Rb1 {[%clk 0:02:10]}  Bxd4 {[%clk 0:01:50]} 12. bxc4 {[%clk 0:02:09]}  Bxe5 {[%clk 0:01:46]} 13. cxd5 {[%clk 0:02:09]}  Bxd5 {[%clk 0:01:43]} 14. Rxb5 {[%clk 0:02:08]}  Bxg2 {[%clk 0:01:30]} 15. Kxg2 {[%clk 0:02:09]}  Nd7 {[%clk 0:01:19]} 16. Nf3 {[%clk 0:01:53]}  Bd6 {[%clk 0:01:14]} 17. Bb2 {[%clk 0:01:46]}  Qe7 {[%clk 0:00:55]} 18. Ng5 {[%clk 0:01:22]}  f5 {[%clk 0:00:50]} 19. h4 {[%clk 0:01:21]}  Rab8 {[%clk 0:00:44]} 20. Ra5 {[%clk 0:01:17]}  h6 {[%clk 0:00:33]} 21. Nf3 {[%clk 0:01:16]}  Rb7 {[%clk 0:00:33]} 22. Nd4 {[%clk 0:01:10]}  Qf7 {[%clk 0:00:19]} 23. e3 {[%clk 0:00:43]}  e5 {[%clk 0:00:16]} 24. Nf3 {[%clk 0:00:37]}  f4 {[%clk 0:00:17]} 25. exf4 {[%clk 0:00:26]}  exf4 {[%clk 0:00:17]} 26. g4 {[%clk 0:00:27]}  Qe6 {[%clk 0:00:08]} 27. Kh3 {[%clk 0:00:18]}  Rfb8 {[%clk 0:00:07]} 28. Bc3 {[%clk 0:00:14]}  Qf7 {[%clk 0:00:03]} 29. Rf5 {[%clk 0:00:12]}  Qe6 {[%clk 0:00:03]} 30. Re1 {[%clk 0:00:13]}  Qc4 {[%clk 0:00:03]} 31. Nd2 {[%clk 0:00:11]}  Rb2 {[%clk 0:00:02]} 32. Nxc4 {[%clk 0:00:06]}  Rxc2 {[%clk 0:00:02]} 33. Bxg7 {[%clk 0:00:03]} 1-0


[Site "https://www.chess.com"]

[Event "Titled Tuesday Blitz March 08 Early 2022"]
[White "Durarbayli, Vasif"]
[Black "Moroni, Luca Jr"]
[WhiteFideId "13402935"]
[BlackFideId "865834"]
[WhiteElo "2528"]
[BlackElo "2573"]
[Result "0-1"]
[Round "06"]
[TimeControl "180+1"]
[Date "2022.03.08"]
[WhiteClock "0:00:04"]
[BlackClock "0:00:53"]

1. d4 {[%clk 0:03:00]}  d6 {[%clk 0:03:00]} 2. e4 {[%clk 0:03:00]}  e5 {[%clk 0:03:00]} 3. Nf3 {[%clk 0:02:59]}  exd4 {[%clk 0:02:59]} 4. Nxd4 {[%clk 0:03:00]}  Nf6 {[%clk 0:03:00]} 5. Nc3 {[%clk 0:03:00]}  Be7 {[%clk 0:03:00]} 6. Bf4 {[%clk 0:03:00]}  O-O {[%clk 0:03:01]} 7. Qd2 {[%clk 0:03:00]}  d5 {[%clk 0:03:01]} 8. Ndb5 {[%clk 0:02:58]}  c6 {[%clk 0:03:01]} 9. Nc7 {[%clk 0:02:57]}  Bb4 {[%clk 0:03:01]} 10. O-O-O {[%clk 0:02:56]}  Nxe4 {[%clk 0:03:01]} 11. Qd4 {[%clk 0:02:57]}  Nxc3 {[%clk 0:02:57]} 12. bxc3 {[%clk 0:02:58]}  Ba3+ {[%clk 0:02:57]} 13. Kb1 {[%clk 0:02:26]}  Bg4 {[%clk 0:02:57]} 14. f3 {[%clk 0:02:22]}  Be6 {[%clk 0:02:57]} 15. Nxa8 {[%clk 0:02:10]}  Qa5 {[%clk 0:02:56]} 16. Bc1 {[%clk 0:01:02]}  c5 {[%clk 0:02:44]} 17. Qf4 {[%clk 0:01:02]}  d4 {[%clk 0:02:30]} 18. Bxa3 {[%clk 0:00:30]}  Qxa3 {[%clk 0:02:30]} 19. c4 {[%clk 0:00:31]}  Qb4+ {[%clk 0:02:26]} 20. Kc1 {[%clk 0:00:30]}  Na6 {[%clk 0:02:19]} 21. Bd3 {[%clk 0:00:14]}  Rxa8 {[%clk 0:02:17]} 22. Rde1 {[%clk 0:00:07]}  Qa3+ {[%clk 0:02:04]} 23. Kd2 {[%clk 0:00:07]}  Nb4 {[%clk 0:02:00]} 24. Qe4 {[%clk 0:00:07]}  Qc3+ {[%clk 0:01:53]} 25. Ke2 {[%clk 0:00:07]}  g6 {[%clk 0:01:22]} 26. Kf2 {[%clk 0:00:08]}  Bxc4 {[%clk 0:01:17]} 27. Qxb7 {[%clk 0:00:03]}  Rf8 {[%clk 0:01:08]} 28. Bxc4 {[%clk 0:00:03]}  Qxc4 {[%clk 0:01:07]} 29. Re2 {[%clk 0:00:03]}  d3 {[%clk 0:00:57]} 30. cxd3 {[%clk 0:00:03]}  Nxd3+ {[%clk 0:00:58]} 31. Kg3 {[%clk 0:00:02]}  Qf4+ {[%clk 0:00:51]} 32. Kh3 {[%clk 0:00:03]}  Qh6+ {[%clk 0:00:52]} 33. Kg3 {[%clk 0:00:03]}  Qg5+ {[%clk 0:00:52]} 34. Kh3 {[%clk 0:00:04]}  Nf4# {[%clk 0:00:53]} 0-1


[Site "https://www.chess.com"]

[Event "Titled Tuesday Blitz March 08 Early 2022"]
[White "Dushyant Sharma"]
[Black "Mohammad Fahad, Rahman"]
[WhiteFideId "25065130"]
[BlackFideId "10207791"]
[WhiteElo "2105"]
[BlackElo "2323"]
[Result "1-0"]
[Round "06"]
[TimeControl "180+1"]
[Date "2022.03.09"]
[WhiteClock "0:01:34"]
[BlackClock "0:01:27"]

1. e4 {[%clk 0:03:00]}  e6 {[%clk 0:02:57]} 2. Nf3 {[%clk 0:03:01]}  d5 {[%clk 0:02:56]} 3. exd5 {[%clk 0:03:00]}  exd5 {[%clk 0:02:57]} 4. d4 {[%clk 0:03:01]}  Bd6 {[%clk 0:02:58]} 5. Bd3 {[%clk 0:03:01]}  Ne7 {[%clk 0:02:59]} 6. O-O {[%clk 0:03:02]}  O-O {[%clk 0:02:59]} 7. c3 {[%clk 0:03:01]}  c5 {[%clk 0:02:59]} 8. Be3 {[%clk 0:03:00]}  c4 {[%clk 0:02:59]} 9. Bc2 {[%clk 0:02:59]}  Nbc6 {[%clk 0:02:59]} 10. Nbd2 {[%clk 0:02:58]}  b5 {[%clk 0:02:59]} 11. b3 {[%clk 0:02:54]}  Qc7 {[%clk 0:02:42]} 12. a4 {[%clk 0:02:53]}  b4 {[%clk 0:02:40]} 13. bxc4 {[%clk 0:02:32]}  bxc3 {[%clk 0:02:40]} 14. Nb1 {[%clk 0:02:25]}  Nb4 {[%clk 0:02:39]} 15. c5 {[%clk 0:02:22]}  Bf4 {[%clk 0:02:22]} 16. Nxc3 {[%clk 0:02:17]}  Bxe3 {[%clk 0:02:21]} 17. fxe3 {[%clk 0:02:18]}  Bg4 {[%clk 0:01:58]} 18. Bxh7+ {[%clk 0:02:17]}  Kh8 {[%clk 0:01:49]} 19. Bb1 {[%clk 0:02:16]}  Rae8 {[%clk 0:01:48]} 20. Qe1 {[%clk 0:02:10]}  f5 {[%clk 0:01:40]} 21. Qh4+ {[%clk 0:02:03]}  Kg8 {[%clk 0:01:41]} 22. Ng5 {[%clk 0:02:04]}  Rf6 {[%clk 0:01:39]} 23. Qh7+ {[%clk 0:01:51]}  Kf8 {[%clk 0:01:39]} 24. Qh8+ {[%clk 0:01:52]}  Ng8 {[%clk 0:01:38]} 25. Nh7+ {[%clk 0:01:52]}  Kf7 {[%clk 0:01:37]} 26. Nxf6 {[%clk 0:01:53]}  Nxf6 {[%clk 0:01:37]} 27. Qh4 {[%clk 0:01:48]}  Rxe3 {[%clk 0:01:37]} 28. Bxf5 {[%clk 0:01:45]}  Bxf5 {[%clk 0:01:35]} 29. Rxf5 {[%clk 0:01:45]}  Rxc3 {[%clk 0:01:35]} 30. Rxf6+ {[%clk 0:01:42]}  Kg8 {[%clk 0:01:30]} 31. Re6 {[%clk 0:01:38]}  Qf7 {[%clk 0:01:27]} 32. Rae1 {[%clk 0:01:34]} 1-0


[Site "https://www.chess.com"]

[Event "Titled Tuesday Blitz March 08 Early 2022"]
[White "Fajdetic, Hrvoje"]
[Black "Manelyuk, Daniil"]
[WhiteFideId "14501945"]
[BlackFideId "44173920"]
[WhiteElo "2172"]
[BlackElo "2222"]
[Result "1-0"]
[Round "06"]
[TimeControl "180+1"]
[Date "2022.03.09"]
[WhiteClock "0:00:38"]
[BlackClock "0:00:06"]

1. d4 {[%clk 0:02:51]}  Nf6 {[%clk 0:02:59]} 2. Bf4 {[%clk 0:02:50]}  c5 {[%clk 0:02:59]} 3. e3 {[%clk 0:02:48]}  g6 {[%clk 0:02:55]} 4. Nd2 {[%clk 0:02:42]}  Bg7 {[%clk 0:02:55]} 5. c3 {[%clk 0:02:42]}  d6 {[%clk 0:02:47]} 6. h3 {[%clk 0:02:37]}  O-O {[%clk 0:02:46]} 7. Ngf3 {[%clk 0:02:37]}  b6 {[%clk 0:02:44]} 8. a4 {[%clk 0:02:35]}  Bb7 {[%clk 0:02:43]} 9. Be2 {[%clk 0:02:35]}  Nbd7 {[%clk 0:02:42]} 10. Nc4 {[%clk 0:02:35]}  Qc7 {[%clk 0:02:37]} 11. O-O {[%clk 0:02:32]}  Rfe8 {[%clk 0:02:34]} 12. Qb3 {[%clk 0:02:30]}  Bd5 {[%clk 0:02:27]} 13. Nfd2 {[%clk 0:02:20]}  e5 {[%clk 0:02:23]} 14. Bh2 {[%clk 0:02:19]}  Qc6 {[%clk 0:02:19]} 15. Qb5 {[%clk 0:01:57]}  Bxg2 {[%clk 0:02:06]} 16. Qxc6 {[%clk 0:01:54]}  Bxc6 {[%clk 0:02:06]} 17. Nxd6 {[%clk 0:01:54]}  exd4 {[%clk 0:02:05]} 18. Nxe8 {[%clk 0:01:53]}  Rxe8 {[%clk 0:02:05]} 19. cxd4 {[%clk 0:01:40]}  cxd4 {[%clk 0:02:04]} 20. Bb5 {[%clk 0:01:38]}  Bxb5 {[%clk 0:01:57]} 21. axb5 {[%clk 0:01:39]}  dxe3 {[%clk 0:01:54]} 22. fxe3 {[%clk 0:01:40]}  Bh6 {[%clk 0:01:49]} 23. Nc4 {[%clk 0:01:36]}  Re4 {[%clk 0:01:40]} 24. b3 {[%clk 0:01:33]}  Nd5 {[%clk 0:00:57]} 25. Rxa7 {[%clk 0:01:29]}  Nc5 {[%clk 0:00:54]} 26. Rfxf7 {[%clk 0:01:20]}  Nxe3 {[%clk 0:00:51]} 27. Rxh7 {[%clk 0:01:15]}  Bf8 {[%clk 0:00:21]} 28. Be5 {[%clk 0:01:09]}  Rxe5 {[%clk 0:00:10]} 29. Nxe5 {[%clk 0:01:09]}  Nf5 {[%clk 0:00:10]} 30. Nxg6 {[%clk 0:01:06]}  Bg7 {[%clk 0:00:10]} 31. Rh5 {[%clk 0:00:49]}  Bd4+ {[%clk 0:00:10]} 32. Kh2 {[%clk 0:00:44]}  Nd6 {[%clk 0:00:08]} 33. Rd5 {[%clk 0:00:41]}  Ndb7 {[%clk 0:00:06]} 34. Rxd4 {[%clk 0:00:38]} 1-0


[Site "https://www.chess.com"]